fUST/lending_fUST_20250115
["ID","MTS","AMOUNT","RATE_DAILY","PERIOD"]
[348943731,1736883046662,-500.0,0.00022191,3]
[348943732,1736883046672,-500.0,0.00022191,3]
[348943733,1736883046681,-500.0,0.00022191,3]
[348943734,1736883046690,-500.0,0.00022191,3]
[348943735,1736883046700,-500.0,0.00022191,3]
[348943736,1736883046709,-500.0,0.00022191,3]
[348943737,1736883046721,-500.0,0.00022191,3]
[348943738,1736883046731,-500.0,0.00022191,3]
[348943739,1736883046741,-609.23,0.00022191,3]
[348943740,1736883046750,-500.0,0.00022191,3]
[348943741,1736883046760,-500.0,0.00022191,3]
[348943742,1736883046771,-500.0,0.00022191,3]
[348943743,1736883046780,-500.0,0.00022191,3]
[348943744,1736883046790,-500.0,0.00022191,3]
[348943745,1736883046802,-567.76,0.00022191,3]
[348943746,1736883046813,-500.0,0.00022191,3]
[348943747,1736883046823,-500.0,0.00022191,3]
[348943748,1736883046832,-851.25,0.00022191,3]
[348943749,1736883046842,-500.0,0.00022191,3]
[348943750,1736883046852,-500.0,0.00022191,3]
[348943751,1736883046861,-500.0,0.00022191,3]
[348943752,1736883046872,-500.0,0.00022191,3]
[348943753,1736883046881,-500.0,0.00022191,3]
[348943754,1736883046891,-500.0,0.00022191,3]
[348943755,1736883046900,-500.0,0.00022191,3]
[348943756,1736883046910,-502.32278179,0.00022191,3]
[348943757,1736883046919,-500.0,0.00022191,3]
[348943758,1736883046928,-664.61,0.00022191,3]
[348943759,1736883046938,-500.0,0.00022191,3]
[348943760,1736883046947,-500.0,0.00022191,3]
[348943761,1736883046957,-2122.33,0.00022191,3]
[348943762,1736883046966,-500.0,0.00022191,3]
[348943763,1736883046975,-500.0,0.00022191,3]
[348943764,1736883046985,-500.0,0.00022191,3]
[348943765,1736883046995,-500.0,0.00022191,3]
[348943766,1736883047005,-513.16383171,0.00022191,3]
[348943767,1736883047016,-500.0,0.00022191,3]
[348943768,1736883047027,-500.0,0.00022191,3]
[348943769,1736883047037,-500.0,0.00022191,3]
[348943770,1736883047047,-500.0,0.00022191,3]
[348943771,1736883047056,-500.0,0.00022191,3]
[348943772,1736883047067,-500.0,0.00022191,3]
[348943773,1736883047076,-500.0,0.00022191,3]
[348943774,1736883047086,-500.0,0.00022191,3]
[348943775,1736883047096,-500.0,0.00022191,3]
[348943776,1736883047106,-500.0,0.00022191,3]
[348943777,1736883047116,-500.0,0.00022191,3]
[348943778,1736883047126,-500.0,0.00022191,3]
[348943779,1736883047136,-500.0,0.00022191,3]
[348943780,1736883047146,-500.0,0.00022191,3]
[348943781,1736883047156,-500.0,0.00022191,3]
[348943782,1736883047165,-500.0,0.00022191,3]
[348943783,1736883047175,-500.0,0.00022191,3]
[348943784,1736883047184,-500.0,0.00022191,3]
[348943785,1736883047194,-500.0,0.00022191,3]
[348943786,1736883047203,-500.0,0.00022191,3]
[348943787,1736883047213,-500.0,0.00022191,3]
[348943788,1736883047223,-500.0,0.00022191,3]
[348943789,1736883047232,-152.11142175,0.00022191,3]
[348943790,1736883047242,-500.0,0.00022191,3]
[348943791,1736883047251,-500.0,0.00022191,3]
[348943792,1736883047260,-500.0,0.00022191,3]
[348943793,1736883047270,-500.0,0.00022191,3]
[348943794,1736883047280,-500.0,0.00022191,3]
[348943795,1736883047289,-500.0,0.00022191,3]
[348943796,1736883047298,-500.0,0.00022191,3]
[348943797,1736883047308,-500.0,0.00022191,3]
[348943798,1736883047318,-500.0,0.00022191,3]
[348943799,1736883047329,-500.0,0.00022191,3]
[348943800,1736883047339,-773.66,0.00022191,3]
[348943801,1736883047432,-500.0,0.00022191,3]
[348943802,1736883047442,-500.0,0.00022191,3]
[348943803,1736883047451,-564.76,0.00022191,3]
[348943804,1736883047460,-531.33101352,0.00022191,3]
[348943805,1736883047471,-500.0,0.00022191,3]
[348943806,1736883047481,-500.0,0.00022191,3]
[348943807,1736883047490,-500.0,0.00022191,3]
[348943808,1736883047500,-500.0,0.00022191,3]
[348943809,1736883047509,-500.0,0.00022191,3]
[348943810,1736883047519,-500.0,0.00022191,3]
[348943811,1736883047529,-4393.06,0.00022191,3]
[348943812,1736883047538,-500.0,0.00022191,3]
[348943813,1736883047548,-500.0,0.00022191,3]
[348943814,1736883047557,-500.0,0.00022191,3]
[348943815,1736883047567,-500.0,0.00022191,3]
[348943816,1736883047577,-500.0,0.00022191,3]
[348943817,1736883047586,-500.0,0.00022191,3]
[348943818,1736883047595,-500.0,0.00022191,3]
[348943819,1736883047604,-500.0,0.00022191,3]
[348943820,1736883047615,-500.0,0.00022191,3]
[348943821,1736883047624,-500.0,0.00022191,3]
[348943822,1736883047634,-500.0,0.00022191,3]
[348943823,1736883047644,-500.0,0.00022191,3]
[348943824,1736883047653,-500.0,0.00022191,3]
[348943825,1736883047663,-500.0,0.00022191,3]
[348943826,1736883047672,-500.0,0.00022191,3]
[348943827,1736883047682,-500.0,0.00022191,3]
[348943828,1736883047691,-500.0,0.00022191,3]
[348943829,1736883047700,-500.0,0.00022191,3]
[348943830,1736883047710,-500.0,0.00022191,3]
[348943831,1736883047721,-500.0,0.00022191,3]
[348943832,1736883047731,-500.0,0.00022191,3]
[348943833,1736883047740,-500.0,0.00022191,3]
[348943834,1736883047749,-500.0,0.00022191,3]
[348943835,1736883047759,-500.0,0.00022191,3]
[348943836,1736883047768,-500.0,0.00022191,3]
[348943837,1736883047779,-500.0,0.00022191,3]
[348943838,1736883047788,-500.0,0.00022191,3]
[348943839,1736883047799,-1582.54,0.00022191,3]
[348943840,1736883047808,-500.0,0.00022191,3]
[348943841,1736883047818,-500.0,0.00022191,3]
[348943842,1736883047827,-516.14223237,0.00022191,3]
[348943843,1736883047837,-519.91233774,0.00022191,3]
[348943844,1736883047846,-500.0,0.00022191,3]
[348943845,1736883047855,-500.0,0.00022191,3]
[348943846,1736883047864,-500.0,0.00022191,3]
[348943847,1736883047873,-500.0,0.00022191,3]
[348943848,1736883047884,-1213.68,0.00022191,2]
[348943849,1736883047893,-1278.03,0.00022191,3]
[348943850,1736883047902,-500.0,0.00022191,3]
[348943851,1736883047912,-500.0,0.00022191,3]
[348943852,1736883047921,-500.0,0.00022191,3]
[348943853,1736883047931,-500.0,0.00022191,3]
[348943854,1736883047941,-500.0,0.00022191,3]
[348943855,1736883047950,-500.0,0.00022191,3]
[348943856,1736883047959,-207.73983988,0.00022191,3]
[348943857,1736883047968,-776.45,0.00022191,3]
[348943858,1736883047978,-615.68534385,0.00022191,3]
[348943859,1736883047987,-500.0,0.00022191,3]
[348943860,1736883047996,-500.0,0.00022191,3]
[348943861,1736883048006,-500.0,0.00022191,3]
[348943862,1736883048015,-500.0,0.00022191,3]
[348943863,1736883048024,-500.0,0.00022191,3]
[348943864,1736883048035,-500.0,0.00022191,3]
[348943865,1736883048044,-500.0,0.00022191,3]
[348943866,1736883048054,-405.75087411,0.00022191,3]
[348943867,1736883048063,-500.0,0.00022191,3]
[348943868,1736883048072,-883.01,0.00022191,3]
[348943869,1736883048082,-556.08416536,0.00022191,3]
[348943870,1736883048091,-500.0,0.00022191,3]
[348943871,1736883048100,-253.39421073,0.00022191,3]
[348943872,1736883048234,-302.87688115,0.00022191,3]
[348943873,1736883048244,-500.0,0.00022191,3]
[348943874,1736883048253,-520.59,0.00022191,3]
[348943875,1736883048262,-500.0,0.00022191,3]
[348943876,1736883048272,-487.24265529,0.00022191,3]
[348943877,1736883048281,-500.0,0.00022191,3]
[348943878,1736883048290,-599.7,0.00022191,3]
[348943879,1736883048301,-9324.34,0.00022191,2]
[348943880,1736883048310,-500.0,0.00022191,3]
[348943881,1736883048320,-1029.99,0.00022191,3]
[348943882,1736883048331,-500.0,0.00022191,3]
[348943883,1736883048342,-500.0,0.00022191,3]
[348943884,1736883048352,-500.0,0.00022191,3]
[348943885,1736883048361,-822.43,0.00022191,3]
[348943886,1736883048370,-4847.61563719,0.00022191,3]
[348943887,1736883048383,-15924.00436281,0.00022191,3]
[348943888,1736883048392,-500.0,0.00022191,3]
[348943889,1736883048403,-53.24271429,0.00022191,3]
[348943890,1736883048896,-158.788414,0.00021917,2]
[348943891,1736883048905,-189.71376383,0.00021917,3]
[348943892,1736883048915,-446.75728571,0.00022191,3]
[348943893,1736883048924,-1976.70368019,0.00022191,3]
[348943894,1736883048984,-203.34299644,0.00019999,2]
[348943895,1736883048994,-500.0,0.00019999,2]
[348943896,1736883049003,-500.0,0.00019999,2]
[348943897,1736883049012,-500.0,0.00019999,2]
[348943898,1736883049021,-500.0,0.00019999,2]
[348943899,1736883049031,-500.0,0.00019999,2]
[348943900,1736883049040,-501.46563173,0.00019999,2]
[348943901,1736883049049,-500.0,0.00019999,2]
[348943902,1736883049059,-500.0,0.00019999,2]
[348943903,1736883049068,-708.38631981,0.00022191,3]
[348943904,1736883049077,-21.79510456,0.00022191,3]
[348943905,1736883049145,-478.20489544,0.00022191,3]
[348943906,1736883049154,-44.50846062,0.00022191,3]
[348943907,1736883049305,-455.49153938,0.00022191,3]
[348943908,1736883049316,-500.0,0.00022191,3]
[348943909,1736883049325,-2431.44,0.00022191,3]
[348943910,1736883049336,-500.0,0.00022191,3]
[348943911,1736883049345,-500.0,0.00022191,3]
[348943912,1736883049355,-500.0,0.00022191,3]
[348943913,1736883049364,-500.0,0.00022191,3]
[348943914,1736883049375,-500.0,0.00022191,3]
[348943915,1736883049384,-500.0,0.00022191,3]
[348943916,1736883049393,-934.16,0.00022191,3]
[348943917,1736883049402,-500.0,0.00022191,3]
[348943918,1736883049412,-646.4,0.00022191,3]
[348943919,1736883049421,-227.88884388,0.00022191,3]
[348943921,1736883233044,321.037308,0.00013973,2]
[348943925,1736884041124,-1257.24771045,0.000189,2]
[348943940,1736884156842,364.985442,0.00013973,2]
[348944562,1736884238359,-640.86208663,0.00018711,2]
[348944563,1736884238370,-754.13952973,0.000189,2]
[348944565,1736884238380,-300.0,0.00019431,2]
[348944567,1736884238392,-5802.67419948,0.00019431,2]
[348944571,1736884238426,-22501.63671749,0.00019431,2]
[348944789,1736884240543,-1401.00747317,0.00019431,2]
[348944791,1736884240555,-10350.0,0.00019431,2]
[348944793,1736884240567,-2337.5,0.00019431,2]
[348944799,1736884240618,-11955.56793362,0.00019431,2]
[348944802,1736884240630,-9764.61367624,0.00019431,2]
[348944804,1736884240639,-193.75553559,0.00019432,2]
[348944806,1736884240651,-24706.24446441,0.00019432,2]
[348944808,1736884240660,-167.839272,0.00019497,2]
[348944810,1736884240670,-180.43597499,0.00019788,2]
[348944812,1736884240679,-488.033105,0.00019888,2]
[348944814,1736884240688,-211.2491997,0.00020091,2]
[348944816,1736884240698,-375.511,0.00020447,2]
[348944818,1736884240707,-364.985442,0.00020447,2]
[348944820,1736884240719,-154.11,0.0002091,2]
[348944822,1736884240728,-500.0,0.00021,2]
[348944824,1736884240738,-507.85042805,0.00021,2]
[348944826,1736884240748,-364.9377508,0.00021,2]
[348944828,1736884240758,-567.671,0.0002108,2]
[348944830,1736884240767,-420.0,0.0002117,2]
[348944832,1736884240777,-500.0,0.00021548,2]
[348944833,1736884240787,-153.9478634,0.00021726,2]
[348944834,1736884240797,-313.5410801,0.00021726,2]
[348944835,1736884240807,-153.0,0.00021726,2]
[348944836,1736884240816,-281.1409256,0.00021726,2]
[348944837,1736884240826,-214.5432881,0.00021726,2]
[348944839,1736884240836,-153.0,0.00021726,2]
[348944841,1736884240846,-153.9478634,0.00021726,2]
[348944843,1736884240855,-153.0,0.000218,2]
[348944845,1736884240866,-204.29389595,0.000219,2]
[348944847,1736884240875,-512.45997838,0.00021916,2]
[348944849,1736884240884,-500.0,0.00021917,3]
[348944851,1736884240895,-500.0,0.00021917,3]
[348944853,1736884240904,-500.0,0.00021917,3]
[348944855,1736884240914,-500.0,0.00021917,3]
[348944857,1736884240924,-500.0,0.00021917,3]
[348944859,1736884240934,-500.0,0.00021917,3]
[348944860,1736884240944,-500.0,0.00021917,3]
[348944863,1736884240954,-500.0,0.00021917,3]
[348944865,1736884240964,-500.0,0.00021917,3]
[348944867,1736884240973,-500.0,0.00021917,3]
[348944869,1736884240983,-503.45019622,0.00021917,3]
[348944871,1736884240992,-500.0,0.00021917,3]
[348944872,1736884241002,-500.0,0.00021917,3]
[348944874,1736884241011,-533.77,0.00021917,3]
[348944877,1736884241021,-339.16783188,0.00021917,3]
[348944879,1736884241030,-524.16449791,0.00021917,3]
[348944881,1736884241040,-502.90299173,0.00021917,3]
[348944883,1736884241050,-500.0,0.00021917,30]
[348944885,1736884241059,-500.0,0.00021917,3]
[348944887,1736884241069,-500.0,0.00021917,3]
[348944902,1736884241211,-500.0,0.00021917,3]
[348944904,1736884241220,-500.0,0.00021917,3]
[348944906,1736884241230,-500.0,0.00021917,3]
[348944908,1736884241239,-500.0,0.00021917,3]
[348944910,1736884241249,-500.0,0.00021917,3]
[348944913,1736884241258,-500.0,0.00021917,3]
[348944915,1736884241268,-500.0,0.00021917,3]
[348944917,1736884241277,-500.0,0.00021917,3]
[348944919,1736884241286,-575.38803646,0.00021917,3]
[348944921,1736884241297,-500.0,0.00021917,3]
[348944923,1736884241306,-500.0,0.00021917,3]
[348944925,1736884241316,-500.0,0.00021917,3]
[348944927,1736884241325,-500.0,0.00021917,3]
[348944929,1736884241334,-500.0,0.00021917,3]
[348944931,1736884241344,-500.0,0.00021917,3]
[348944933,1736884241353,-501.80206379,0.00021917,3]
[348944935,1736884241363,-500.0,0.00021917,3]
[348944937,1736884241372,-500.0,0.00021917,3]
[348944939,1736884241381,-500.0,0.00021917,3]
[348944941,1736884241391,-503.39767878,0.00021917,3]
[348944943,1736884241401,-500.0,0.00021917,3]
[348944945,1736884241410,-500.0,0.00021917,3]
[348944947,1736884241420,-502.46000505,0.00021917,3]
[348944949,1736884241429,-500.0,0.00021917,3]
[348944951,1736884241438,-500.15150963,0.00021917,3]
[348944953,1736884241448,-500.0,0.00021917,3]
[348944955,1736884241457,-500.0,0.00021917,3]
[348944957,1736884241467,-500.0,0.00021917,3]
[348944959,1736884241477,-500.0,0.00021917,3]
[348944961,1736884241486,-500.0,0.00021917,3]
[348944963,1736884241495,-500.0,0.00021917,3]
[348944965,1736884241504,-500.0,0.00021917,3]
[348944967,1736884241514,-500.0,0.00021917,3]
[348944969,1736884241524,-500.0,0.00021917,3]
[348944971,1736884241533,-500.0,0.00021917,3]
[348944973,1736884241543,-500.0,0.00021917,3]
[348944975,1736884241552,-500.0,0.00021917,3]
[348944977,1736884241562,-500.0,0.00021917,3]
[348944979,1736884241571,-500.0,0.00021917,3]
[348944981,1736884241580,-744.84,0.00021917,3]
[348944983,1736884241591,-3229.9,0.00021917,3]
[348944986,1736884241600,-500.0,0.00021917,3]
[348944988,1736884241609,-500.0,0.00021917,3]
[348944990,1736884241618,-500.0,0.00021917,3]
[348944992,1736884241628,-553.91,0.00021917,3]
[348944994,1736884241637,-500.0,0.00021917,3]
[348944996,1736884241647,-581.54,0.00021917,3]
[348944998,1736884241656,-500.0,0.00021917,3]
[348945000,1736884241666,-517.63,0.00021917,3]
[348945002,1736884241675,-500.0,0.00021917,3]
[348945004,1736884241684,-500.0,0.00021917,3]
[348945006,1736884241694,-563.14701524,0.00021917,3]
[348945008,1736884241703,-500.0,0.00021917,3]
[348945010,1736884241713,-4513.3,0.00021917,3]
[348945012,1736884241722,-500.0,0.00021917,3]
[348945014,1736884241733,-500.0,0.00021917,3]
[348945016,1736884241743,-500.0,0.00021917,3]
[348945018,1736884241752,-235.67140899,0.00021917,3]
[348945020,1736884241762,-500.0,0.00021917,3]
[348945022,1736884241772,-500.0,0.00021917,3]
[348945024,1736884241782,-500.0,0.00021917,3]
[348945026,1736884241792,-500.0,0.00021917,3]
[348945028,1736884241801,-500.0,0.00021917,3]
[348945030,1736884241811,-500.0,0.00021917,3]
[348945032,1736884241819,-3864.76,0.00021917,3]
[348945034,1736884241829,-500.0,0.00021917,3]
[348945036,1736884241838,-1857.04,0.00021917,3]
[348945038,1736884241847,-500.0,0.00021917,3]
[348945040,1736884241857,-500.0,0.00021917,3]
[348945042,1736884241866,-500.0,0.00021917,3]
[348945044,1736884241876,-1000.0,0.00021917,3]
[348945046,1736884241885,-676.95,0.00021917,3]
[348945048,1736884241895,-500.0,0.00021917,3]
[348945050,1736884241904,-500.0,0.00021917,3]
[348945052,1736884241914,-500.0,0.00021917,3]
[348945054,1736884241923,-500.0,0.00021917,3]
[348945056,1736884241933,-500.0,0.00021917,3]
[348945058,1736884241942,-500.0,0.00021917,3]
[348945060,1736884241951,-411.30220088,0.00021917,3]
[348945062,1736884241960,-500.0,0.00021917,3]
[348945064,1736884241970,-500.0,0.00021917,3]
[348945066,1736884241980,-500.0,0.00021917,3]
[348945068,1736884241990,-500.0,0.00021917,3]
[348945070,1736884242000,-500.0,0.00021917,3]
[348945072,1736884242010,-500.0,0.00021917,3]
[348945074,1736884242019,-500.0,0.00021917,3]
[348945076,1736884242028,-500.0,0.00021917,3]
[348945078,1736884242037,-500.0,0.00021917,3]
[348945080,1736884242046,-500.0,0.00021917,3]
[348945082,1736884242055,-291.63048734,0.00021917,3]
[348945084,1736884242065,-500.0,0.00021917,3]
[348945086,1736884242075,-500.0,0.00021917,3]
[348945088,1736884242084,-500.0,0.00021917,3]
[348945090,1736884242093,-500.0,0.00021917,3]
[348945092,1736884242105,-500.0,0.00021917,3]
[348945094,1736884242115,-500.0,0.00021917,3]
[348945096,1736884242126,-500.0,0.00021917,3]
[348945098,1736884242135,-500.0,0.00021917,3]
[348945100,1736884242144,-500.0,0.00021917,3]
[348945102,1736884242154,-500.0,0.00021917,3]
[348945104,1736884242163,-548.88594039,0.00021917,3]
[348945106,1736884242172,-500.0,0.00021917,3]
[348945108,1736884242181,-500.0,0.00021917,3]
[348945110,1736884242190,-500.0,0.00021917,3]
[348945112,1736884242199,-500.0,0.00021917,3]
[348945114,1736884242208,-500.0,0.00021917,3]
[348945116,1736884242218,-500.0,0.00021917,3]
[348945118,1736884242227,-500.0,0.00021917,3]
[348945120,1736884242236,-500.0,0.00021917,3]
[348945122,1736884242245,-500.0,0.00021917,3]
[348945124,1736884242254,-500.0,0.00021917,3]
[348945126,1736884242263,-500.0,0.00021917,3]
[348945128,1736884242272,-500.0,0.00021917,3]
[348945130,1736884242281,-500.0,0.00021917,3]
[348945132,1736884242290,-500.0,0.00021917,3]
[348945134,1736884242300,-500.0,0.00021917,3]
[348945136,1736884242309,-500.0,0.00021917,3]
[348945139,1736884242318,-500.0,0.00021917,3]
[348945141,1736884242327,-500.0,0.00021917,3]
[348945143,1736884242337,-500.0,0.00021917,3]
[348945145,1736884242346,-508.36563686,0.00021917,3]
[348945147,1736884242355,-500.0,0.00021917,3]
[348945149,1736884242364,-500.0,0.00021917,3]
[348945151,1736884242373,-500.0,0.00021917,3]
[348945153,1736884242382,-500.0,0.00021917,3]
[348945155,1736884242391,-500.0,0.00021917,3]
[348945157,1736884242400,-444.14646199,0.00021917,3]
[348945159,1736884242409,-1405.56,0.00021917,3]
[348945161,1736884242419,-500.0,0.00021917,3]
[348945163,1736884242428,-500.0,0.00021917,3]
[348945165,1736884242437,-500.0,0.00021917,3]
[348945167,1736884242446,-500.0,0.00021917,3]
[348945169,1736884242455,-500.0,0.00021917,3]
[348945171,1736884242465,-500.0,0.00021917,3]
[348945173,1736884242474,-1061.97,0.00021917,2]
[348945175,1736884242483,-500.0,0.00021917,3]
[348945177,1736884242492,-561.0629366,0.00021917,3]
[348945179,1736884242501,-500.0,0.00021917,3]
[348945181,1736884242511,-500.0,0.00021917,3]
[348945183,1736884242520,-368.45661824,0.00021917,3]
[348945185,1736884242529,-500.0,0.00021917,3]
[348945187,1736884242538,-500.0,0.00021917,3]
[348945189,1736884242547,-500.0,0.00021917,3]
[348945191,1736884242556,-500.0,0.00021917,3]
[348945193,1736884242565,-500.0,0.00021917,3]
[348945195,1736884242574,-633.31,0.00021917,3]
[348945197,1736884242583,-46.45930163,0.00021917,3]
[348945199,1736884242598,-290.77627598,0.00021917,3]
[348945307,1736884243567,-417.625,0.00019431,2]
[348945427,1736885125899,400.0,0.00013973,2]
[348945429,1736885227160,-958.46890993,0.000189,2]
[348945430,1736885230122,-750.52937073,0.000189,2]
[348945431,1736885230146,-194.04190052,0.00019619,2]
[348945432,1736885230169,-166.831564,0.00020439,2]
[348945433,1736885230340,-400.0,0.00020447,2]
[348945434,1736885230368,-3301.0,0.0002061,2]
[348945435,1736885230394,-300.0,0.00020627,2]
[348945436,1736885230418,-3633.32940397,0.00020628,2]
[348945510,1736885432871,-1157.206162,0.00020597,2]
[348945512,1736885432881,-300.0,0.00020627,2]
[348945515,1736885432892,-637.0,0.00020627,2]
[348945517,1736885432902,-21266.67059603,0.00020628,2]
[348945519,1736885432911,-543.682,0.0002108,2]
[348945521,1736885432921,-429.7275722,0.00021278,2]
[348945523,1736885432931,-306.677722,0.00021278,2]
[348945525,1736885432941,-248.15711228,0.000216,2]
[348945527,1736885432950,-160.0,0.00021629,3]
[348945529,1736885432960,-153.0,0.000217,2]
[348945531,1736885432970,-316.4238588,0.000217,2]
[348945533,1736885432979,-155.0434598,0.00021726,2]
[348945535,1736885432989,-248.15711224,0.00021889,2]
[348945537,1736885432998,-204.2938959,0.000219,2]
[348945539,1736885433008,-12087.5296191,0.0002191,2]
[348945541,1736885433017,-500.0,0.00021912,2]
[348945543,1736885433026,-500.0,0.00021912,2]
[348945545,1736885433036,-500.0,0.00021912,2]
[348945547,1736885433045,-500.0,0.00021912,2]
[348945549,1736885433055,-500.0,0.00021912,2]
[348945551,1736885433065,-500.0,0.00021912,2]
[348945553,1736885433075,-500.0,0.00021912,2]
[348945555,1736885433085,-500.0,0.00021912,2]
[348945557,1736885433096,-500.0,0.00021912,2]
[348945559,1736885433107,-500.0,0.00021912,2]
[348945561,1736885433117,-500.0,0.00021912,2]
[348945563,1736885433128,-500.0,0.00021912,2]
[348945565,1736885433138,-500.0,0.00021912,2]
[348945567,1736885433147,-486.14491826,0.00021912,2]
[348945569,1736885433158,-534.98999894,0.00021912,2]
[348945571,1736885433168,-500.0,0.00021912,2]
[348945573,1736885433177,-500.0,0.00021912,2]
[348945575,1736885433187,-390.29588341,0.00021912,2]
[348945577,1736885433197,-434.49835546,0.00021912,2]
[348945579,1736885433206,-500.0,0.00021912,2]
[348945581,1736885433217,-500.0,0.00021912,2]
[348945583,1736885433227,-567.96447367,0.00021912,2]
[348945585,1736885433238,-307.74821219,0.00021912,2]
[348945587,1736885433247,-500.0,0.00021912,2]
[348945589,1736885433257,-500.0,0.00021912,2]
[348945591,1736885433267,-500.0,0.00021912,2]
[348945593,1736885433277,-500.0,0.00021912,2]
[348945595,1736885433287,-500.0,0.00021912,2]
[348945597,1736885433296,-500.0,0.00021912,2]
[348945599,1736885433307,-500.0,0.00021912,2]
[348945601,1736885433318,-500.0,0.00021912,2]
[348945603,1736885433327,-325.50094724,0.00021912,2]
[348945605,1736885433337,-500.0,0.00021912,2]
[348945607,1736885433346,-500.0,0.00021912,2]
[348945609,1736885433356,-500.0,0.00021912,2]
[348945611,1736885433366,-341.44189104,0.00021912,2]
[348945613,1736885433376,-500.0,0.00021912,2]
[348945615,1736885433387,-500.0,0.00021912,2]
[348945617,1736885433397,-500.0,0.00021912,2]
[348945619,1736885433406,-500.0,0.00021912,2]
[348945621,1736885433416,-500.0,0.00021912,2]
[348945623,1736885433426,-500.0,0.00021912,2]
[348945625,1736885433436,-500.0,0.00021912,2]
[348945627,1736885433451,-500.0,0.00021912,2]
[348945629,1736885433461,-500.0,0.00021912,2]
[348945631,1736885433471,-584.16328515,0.00021912,2]
[348945633,1736885433483,-500.0,0.00021912,2]
[348945635,1736885433493,-500.0,0.00021912,2]
[348945638,1736885433503,-556.40499418,0.00021912,2]
[348945640,1736885433513,-500.0,0.00021912,2]
[348945641,1736885433523,-500.0,0.00021912,2]
[348945644,1736885433534,-500.0,0.00021912,2]
[348945646,1736885433545,-500.0,0.00021912,2]
[348945647,1736885433555,-500.0,0.00021912,2]
[348945649,1736885433566,-500.0,0.00021912,2]
[348945651,1736885433576,-500.0,0.00021912,2]
[348945653,1736885433585,-500.0,0.00021912,2]
[348945655,1736885433595,-500.0,0.00021912,2]
[348945657,1736885433604,-500.0,0.00021912,2]
[348945659,1736885433613,-500.0,0.00021912,2]
[348945661,1736885433623,-500.0,0.00021912,2]
[348945663,1736885433632,-500.0,0.00021912,2]
[348945665,1736885433642,-500.0,0.00021912,2]
[348945667,1736885433652,-500.0,0.00021912,2]
[348945669,1736885433662,-500.0,0.00021912,2]
[348945671,1736885433672,-500.0,0.00021912,2]
[348945673,1736885433681,-500.0,0.00021912,2]
[348945675,1736885433691,-500.0,0.00021912,2]
[348945677,1736885433700,-197.54792431,0.00021912,2]
[348945679,1736885433709,-500.0,0.00021912,2]
[348945681,1736885433719,-500.0,0.00021912,2]
[348945683,1736885433728,-500.0,0.00021912,2]
[348945685,1736885433738,-500.0,0.00021912,2]
[348945687,1736885433747,-500.0,0.00021912,2]
[348945689,1736885433757,-300.409,0.00021915,2]
[348945691,1736885433766,-358.72198486,0.00021916,2]
[348945693,1736885433775,-155.32439546,0.00021916,2]
[348945695,1736885433784,-39916.90901944,0.00021917,5]
[348945697,1736885433793,-9052.48922506,0.00021917,5]
[348945699,1736885433802,-500.0,0.00021917,3]